Cogmind - Beta 15 @@@ ROGUE MODE // 2025.07.12 @ 02:12:23 Player: roc Result: Destroyed by G-47 Trooper with Particle Gun Performance ------------- Evolutions (0) 0 Regions Visited (2) 400 Robots Destroyed (37) 185 Value Destroyed (874) 874 Prototype IDs (0) 0 Alien Tech Used (0) 0 Bonus (0) 0 TOTAL SCORE: 1459 Bonus ------- None Cogmind --------- Core Integrity 0/250 Matter 186/300 Energy 125/125 System Corruption 1% Temperature Cool (9) Movement Rolling (200) Ox8 Location -10/Mines Parts ------- > --- POWER (1) -------- Light Ion Engine > --- PROPULSION (2) --- Light Treads Wheel > --- UTILITY (2) ------ Huge Storage Unit > --- WEAPON (2) ------- Beam Cannon Assault Rifle > --- INVENTORY (25) --- Light Ion Engine Light Treads Light Treads Light Treads Light Treads Wheel Heat Sink Heat Sink Improved Heat Sink High-capacity Matter Pod (200) Structural Scanner Improved Terrain Scanner Seismic Detector Hacking Suite Tractor Beam Medium Laser Medium Laser Mini Grenade Launcher Mini Grenade Launcher Mini Grenade Launcher Datajack Mining Laser Peak State ------------ > --- POWER ------------ Ion Engine > --- PROPULSION ------- Light Treads Wheel > --- UTILITY ---------- Huge Storage Unit Light Armor Plating > --- WEAPON ----------- Mini Grenade Launcher Mini Grenade Launcher > --- INVENTORY -------- Light Ion Engine Light Ion Engine Light Treads Light Treads Light Treads Light Treads Light Treads Wheel Heat Sink Heat Sink Improved Heat Sink High-capacity Matter Pod Structural Scanner Improved Terrain Scanner Seismic Detector Hacking Suite Tractor Beam Medium Laser Medium Laser Beam Cannon Assault Rifle Mini Grenade Launcher Mini Grenade Launcher Datajack Mining Laser [Rating: 12] Favorites ----------- Power Ion Engine Engine Ion Engine Propulsion Light Treads Treads Light Treads Wheel Wheel Utility Huge Storage Unit Device Heat Sink Storage Huge Storage Unit Protection Light Armor Plating Weapon Assault Rifle Energy Gun Small Laser Energy Cannon Beam Cannon Ballistic Gun Assault Rifle Launcher Mini Grenade Launcher Special Melee Weapon Datajack Build | -11 -10 -10 ------- Run | Yrd Mat Min Slots Evolved . | . . . Power . | . . . Propulsion . | . . . Utility . | . . . Weapon . | . . . Parts Attached 25 | 6 12 7 Power 3 | 1 1 1 Engine 3 | 1 1 1 Core . | . . . Reactor . | . . . Propulsion 8 | 2 3 3 Treads 5 | 2 1 2 Leg . | . . . Wheel 3 | . 2 1 Hover . | . . . Flight . | . . . Utility 6 | 1 5 . Device 1 | . 1 . Storage 4 | 1 3 . Processor . | . . . Hackware . | . . . Protection 1 | . 1 . Artifact . | . . . Weapon 8 | 2 3 3 Energy Gun 1 | 1 . . Energy Cannon 1 | . 1 . Ballistic Gun 1 | 1 . . Ballistic Cannon . | . . . Launcher 3 | . . 3 Special Weapon . | . . . Impact Weapon . | . . . Slashing Weapon . | . . . Piercing Weapon . | . . . Special Melee Weapon 2 | . 2 . Unidentified Prototypes . | . . . Parts Lost 7 | . 3 4 Power 1 | . . 1 Propulsion 3 | . 2 1 Utility 1 | . . 1 Weapon 2 | . 1 1 Highest Loss Streak 3 | . 3 2 To Critical Strikes . | . . . Average Backups 20 | 3 21 23 Power 1 | . 1 1 Propulsion 5 | 2 6 5 Utility 6 | . 6 9 Weapon 5 | . 6 6 Tool/Special . | . . . Unused Backups 22 | . 7 15 Power . | . . . Propulsion 5 | . 3 2 Utility 9 | . . 9 Weapon 7 | . 3 4 Tool/Special 1 | . 1 . Average Slot Usage (%) 89 | . 91 83 Engine 13 | . 14 12 Treads 15 | . 15 14 Wheel 12 | . 12 13 Device 3 | . 4 . Storage 14 | . 14 14 Protection 3 | . 4 . Energy Gun 5 | . 6 . Energy Cannon 4 | . 5 3 Ballistic Gun 10 | . 12 3 Launcher 5 | . . 21 Peak Build Rating 12 | 7 10 12 Average Rating 8 | 5 8 10 On Entrance 5 | . 7 10 Naked Turns . | . . . Heaviest Build 93 | 11 93 88 Greatest Support 40 | 40 40 10 Greatest Overweight (x) 9 | . 9 8 Average Overweight (x) 6 | . 7 8 Largest Inventory Capacity 25 | 8 25 25 Average Capacity 22 | 7 23 25 Most Carried 25 | 8 25 25 Average Carried 20 | 4 21 23 Final Capacity 25 | 8 25 25 Final Carried 25 | 8 25 22 Class Distribution -------------------- 100% | Mutant Dominant Class ---------------- Mutant | -10/Materials Mutant | -10/Mines Resources | -11 -10 -10 ----------- Run | Yrd Mat Min Matter Collected 1008 | 284 615 109 Remotely . | . . . Salvage Created 1048 | 152 724 172 Parts 65 | 11 45 9 Haulers Intercepted 1 | . 1 . Recyclers Shooed . | . . . Parts Field Recycled . | . . . Retrieved Matter . | . . . Parts Self-Destructed . | . . . Prevented . | . . . Kills | -11 -10 -10 ------- Run | Yrd Mat Min Combat Hostiles Destroyed 26 | . 17 9 Guns 16 | . 15 1 Cannons 2 | . 2 . AOE 8 | . . 8 Classes Destroyed 8 | 2 6 . Worker 1 | . 1 . Tunneler 4 | 4 . . Hauler 1 | . 1 . Recycler 2 | 1 1 . Operator 1 | . 1 . Watcher 2 | . 2 . Swarmer 9 | . 6 3 Grunt 17 | . 11 6 Best Kill Streak 4 | 2 4 3 Combat Bots Only 4 | . 4 3 Max Kills in Single Turn 2 | 1 1 2 Gunslinging . | . . . Exploded 2 | . . 2 Melee . | . . . Uniques/NPCs Destroyed . | . . . Combat | -11 -10 -10 -------- Run | Yrd Mat Min Hostile Shots Fired 96 | . 74 22 Missed 19 | . 14 5 Hits 77 | . 60 17 Projectile 77 | . 60 17 Damage Taken 1107 | . 713 394 Core 266 | . 184 82 Absorbed by Shields . | . . . Regen/Repaired (Parts) 82 | . 82 . Core Remaining (%) 100 | 100 . . Volleys Fired 90 | 12 68 10 Largest 2 | 2 2 2 Hottest 80 | 60 80 80 Shots Fired 165 | 24 122 19 Gun 132 | 24 105 3 Cannon 20 | . 17 3 Launcher 13 | . . 13 Special . | . . . Kinetic 84 | 12 69 3 Thermal 68 | 12 53 3 Explosive 13 | . . 13 Electromagnetic . | . . . Robot Hit Streak 13 | 8 13 3 Robot Miss Streak 4 | 3 4 4 Penetration Max . | . . . Secondary Targets 1 | . 1 . Max Gunslinging Chain 1 | . 1 . Shots Hit Robots 109 | 17 86 6 Core Hits 56 | 5 38 13 Critical Kills . | . . . Critical Parts Destroyed . | . . . Critical Strikes . | . . . Melee Attacks 1 | . 1 . Impact . | . . . Slashing . | . . . Piercing . | . . . Sneak Attacks 1 | . 1 . Combat Hostiles . | . . . Follow-up Attacks . | . . . Damage Inflicted 1995 | 222 1097 676 Guns 1171 | 207 938 26 Cannons 177 | . 159 18 Explosions 632 | . . 632 Melee . | . . . Ramming 15 | 15 . . Kinetic 754 | 116 612 26 Thermal 594 | 91 485 18 Explosive 632 | . . 632 Electromagnetic . | . . . Impact . | . . . Slashing . | . . . Piercing . | . . . Highest Corruption 1 | . 1 1 Average Corruption 1 | . 1 1 Corruption Purged . | . . . Corruption Blocked . | . . . Effects 17 | . 11 6 Message Errors 5 | . 2 3 Matter Fused 4 | . 2 2 Heat Flow Errors 1 | . . 1 Energy Discharges 2 | . 2 . Data Loss (minor) 2 | . 2 . Data Loss (major) 1 | . 1 . Misfires 1 | . 1 . Alerts 1 | . 1 . Overload Shots . | . . . Overflow Damage 17 | . . 17 Projectiles . | . . . Explosions 17 | . . 17 Melee . | . . . Knockbacks . | . . . Impact . | . . . Kinetic . | . . . Secondary . | . . . Self-Inflicted Damage 167 | . . 167 Shots 6 | . . 6 Rammed 4 | 4 . . Targets Rammed 5 | 5 . . Kicked . | . . . Crushed 1 | 1 . . Highest Temperature 219 | . 219 207 Average Temperature 65 | . 69 48 Received Heat Transfer 429 | . 312 117 Effects 1 | . 1 . Energy Bleed 1 | . 1 . Siege Activations . | . . . Martial Activations . | . . . Shielding Activations . | . . . Robots Disrupted . | . . . Combat Hostiles . | . . . Robots Corrupted . | . . . Combat Hostiles . | . . . Parts Fried . | . . . Impact Corruptions . | . . . Robots Melted . | . . . Combat Hostiles . | . . . Parts Melted . | . . . Heat Transferred 1295 | 200 1058 37 Parts Sabotaged . | . . . Parts Stolen . | . . . Parts Stripped . | . . . Power Chain Reactions . | . . . Alert | -11 -10 -10 ------- Run | Yrd Mat Min Maximum Alert Level . | . . . Low Security (%) 100 | 100 100 100 Level 1 . | . . . Level 2 . | . . . Level 3 . | . . . Level 4 . | . . . Level 5 . | . . . High Security . | . . . Max Security . | . . . Peak Influence 198 | 5 198 131 Initial 12 | . . 12 Average 47 | . 53 49 Influence Increases 991 | 25 576 390 Destroy 0b10 Robot/C 520 | . 340 180 Destroy 0b10 Robot/NC 55 | 25 30 . Destroy Leader 126 | . 86 40 Trap Triggered on 0b10 10 | . 10 . Successful Hack 17 | . 17 . Select Force Hacks 60 | . 60 . Disable Machine 75 | . . 75 Destroy Structure 83 | . 3 80 Lose Combat Pursuer 45 | . 30 15 Influence Decreases 909 | 25 544 340 Entered New Map 20 | . . 20 Time Decay 839 | 25 534 280 Lost Part 50 | . 10 40 Squads Dispatched 5 | . 5 . Investigation 4 | . 4 . Extermination . | . . . Reinforcement 1 | . 1 . Assault . | . . . Garrison . | . . . Intercept . | . . . Searches Triggered . | . . . Construction Impeded . | . . . Haulers Reinforced . | . . . Active Scanning Responses . | . . . Cargo Convoy Interrupts . | . . . Stealth | -11 -10 -10 --------- Run | Yrd Mat Min Distress Signals 4 | . 3 1 Communications Jammed . | . . . Distress Signals . | . . . Times Spotted 42 | . 31 11 Peak Tracking Total 5 | . 5 3 Tactical Retreats 3 | . 2 1 Traps | -11 -10 -10 ------- Run | Yrd Mat Min Traps Triggered 5 | . 5 . Indirectly . | . . . Trap Hack Attempts 44 | . 44 . Triggered . | . . . Disarmed . | . . . Reprogrammed 5 | . 5 . Reused 1 | . 1 . Traps Extracted . | . . . Installed . | . . . Triggered 1 | . 1 . Machines | -11 -10 -10 ---------- Run | Yrd Mat Min Machines Disabled 5 | . . 5 Max in Single Turn 4 | . . 4 Machines Repaired . | . . . Machines Dismantled . | . . . Machines Sabotaged . | . . . Overloaded Fab Kills . | . . . Hacking | -11 -10 -10 --------- Run | Yrd Mat Min Machines Accessed 10 | . 10 . Terminals 7 | . 7 . Fabricators . | . . . Repair Stations 1 | . 1 . Recycling Units 2 | . 2 . Scanalyzers . | . . . Garrison Access . | . . . Total Hacks 28 | . 28 . Successful 17 | . 17 . Failed 11 | . 11 . Catastrophic . | . . . Database Lockouts . | . . . Manual 19 | . 19 . Terminals 20 | . 20 . Fabricators . | . . . Repair Stations 2 | . 2 . Recycling Units 6 | . 6 . Scanalyzers . | . . . Garrison Access . | . . . Terminal Hacks 3 | . 3 . Locate Traps 1 | . 1 . Hauler Manifests 2 | . 2 . Fabricator Hacks . | . . . Repair Station Hacks 2 | . 2 . Scan Component 1 | . 1 . Repair 1 | . 1 . Recycling Unit Hacks 3 | . 3 . Report Inventory 2 | . 2 . Retrieve Components 1 | . 1 . Scanalyzer . | . . . Garrison Access Hacks . | . . . Unauthorized Hacks 9 | . 9 . Terminals 7 | . 7 . Botnet 1 | . 1 . Operators 1 | . 1 . Skim 5 | . 5 . Fabricators . | . . . Repair Stations . | . . . Recycling Units 2 | . 2 . Tunnel 2 | . 2 . Scanalyzers . | . . . Garrison Access . | . . . Data Cores Recovered . | . . . Used . | . . . Hacking Detections 6 | . 6 . Full Trace Events 2 | . 2 . Feedback Events . | . . . Feedback Blocked . | . . . Robot Schematics Acquired . | . . . Robots Built . | . . . Authchips . | . . . Time . | . . . Total Robot Build Rating . | . . . Part Schematics Acquired . | . . . Parts Built . | . . . Authchips . | . . . Time . | . . . Total Part Build Rating . | . . . Parts Repaired 1 | . 1 . Time 26 | . 26 . Parts Recycled . | . . . Recycled Matter . | . . . Retrieved Matter . | . . . Retrieved Components 3 | . 3 . Parts Scanalyzed . | . . . Part Schematics Acquired . | . . . Parts Damaged . | . . . Bothacking | -11 -10 -10 ------------ Run | Yrd Mat Min Used RIF Installer . | . . . Robots Hacked . | . . . Non-combat . | . . . Combat . | . . . Robot Hacks Applied . | . . . Relay Couplers Released . | . . . Fabnet Peak Effective % . | . . . Robots Rewired . | . . . Allies Hacked . | . . . Hacks Repelled . | . . . Allies | -11 -10 -10 -------- Run | Yrd Mat Min Total Allies . | . . . Largest Group . | . . . Highest-Rated Group . | . . . Highest-Rated Ally . | . . . Total Orders . | . . . Ally Attacks . | . . . Total Damage . | . . . Kills . | . . . Allies Corrupted . | . . . Allies Melted . | . . . Intel | -11 -10 -10 ------- Run | Yrd Mat Min Active Infowar (turns) . | . . . Robot Analysis Total . | . . . Derelict Logs Recovered 2 | . . 2 Drone Launches . | . . . Drone Recoveries . | . . . Exploration | -11 -10 -10 ------------- Run | Yrd Mat Min Turns Passed 3595 | 337 2472 786 Spaces Moved 1593 | 179 1056 358 Core 8 | 8 . . Treads 257 | 171 86 . Legs . | . . . Wheels 1328 | . 970 358 Hover . | . . . Flight . | . . . Fastest Speed 50 | 50 140 200 Average Speed 195 | 155 201 200 Slowest Speed 240 | 160 240 200 Overloaded Moves . | . . . Propulsion Burnouts . | . . . Robots Hopped . | . . . Potential Cave-ins . | . . . Cave-ins Triggered . | . . . Exploration Rate (%) 61 | 10 98 75 Regions Visited 2 Branch Regions 1 Pre-discovered Areas 3 | . 2 1 Known Exits Taken . | . . . Unknown Exits Taken 2 | 1 1 . Scrap Searched 1 | . . 1 Spaces Dug 9 | . . 9 Terrain Destroyed 122 | . . 122 Melee . | . . . Projectile . | . . . AOE 122 | . . 122 Terrain Rammed . | . . . Walls Destroyed . | . . . Machines Disabled . | . . . Actions | -11 -10 -10 --------- Run | Yrd Mat Min Total 1895 | 209 1279 407 Wait 76 | . 46 30 Move 1591 | 178 1055 358 Hop . | . . . Pick Up 37 | 8 29 . Fast Attach 16 | 6 10 . Attach 8 | . 5 3 Detach 3 | . 3 . Swap 12 | . 6 6 Drop 12 | . 12 . Fire 90 | 12 68 10 Melee 1 | . 1 . Ram . | . . . Kick . | . . . Crush 5 | 5 . . Escape Stasis . | . . . Rewire . | . . . Trap 44 | . 44 . Miscellaneous . | . . . Route ------- -11/Scrapyard -10/Materials (discovered 4 exits: [*Mat x3] / [*Min]) -10/Mines (discovered 1 exit: [*Mat]) History --------- Turn | Location | Event 3 | -11/Scrapyard | Discovered new exit (range 16) 338 | -11/Scrapyard | Entered Materials 339 | -10/Materials | Build established: Mutant 614 | -10/Materials | Discovered new exit (range 12) 965 | -10/Materials | Discovered new exit (range 16) 1567 | -10/Materials | Core integrity fell below 50% 1623 | -10/Materials | Lost 3 parts (2n1w) 1899 | -10/Materials | Discovered new exit (range 15) 1994 | -10/Materials | Repaired Assault Rifle 2176 | -10/Materials | Discovered new exit (range 16) 2810 | -10/Materials | Entered Mines 2814 | -10/Mines | Core integrity fell below 20% 2936 | -10/Mines | Learned location of 1 exit from Materials 3517 | -10/Mines | Discovered new exit (range 14) 3596 | -10/Mines | Destroyed by G-47 Trooper with Particle Gun Last Messages --------------- 03277_ PDSBTU1HL 03419_ S-10 Pest destroyed. 03421_ The unstable cave ceiling collapses. 03430_ S-10 Pest destroyed. 03435_ U-05 Engineer builds a Wall. 03435_ Acquired 9 matter. 03444_ System corrupted: Matter fused (-5). 03445_ U-05 Engineer lays Concrete. 03448_ U-05 Engineer builds a Wall. 03452_ U-05 Engineer sends out distress signal. 03497_ HH:: DS2N>XAGS5:E2E 03517_ EXIT=FOUND 03571_ Acquired derelict log, extracted data. World map updated: -8/Materials. Map ----- +----------------------------------------------------+ | #??# #????????# """ "" # #?????????????? | | #### #########????????# *% #?????????????? | | # # #????????????????######## # ##????????????? | | ## #???????????????????????##### ##????????????? | | #???????????????############# #?????????????? | | #???????????????# #?????????????? | | # #???????????????# #############?????????????? | | ### ##???????????????# ##????????????????????????? | | ### #???????????????## ##???????????????????????? | | ??# ###############?# ######??????????????????? | | ??# #?## #??????????????????? | | ??######## ###### #??## #??????????????????? | | ?????????# #????# #??## ### ##?????????????????? | | ?????????# #????# #?## ### ######### ?????? | | ########## #????# ### ## ????? | | #????# ## ### ????? | | ############???## ##?# ##### ### ""?????? | | ???###?????????# ####??#r ##?????????????????? | | ??# ##???????# ###????## ##?????????????????? | | ?? ##??????## ##?????## ###???????????????? | | ## ###?????####????### ##??????????????? | | ##???????????## """ ##?????????????? | | !! ##??????????# """ #?????????????? | | ! ############ """ #?????????????? | | !! # k ##?????????????? | | ! # @ < ###??????????????? | | ## ########## ## #????????????????? | | #### #### #????????## ##? #????????????????? | | ###?####??# ?????????##g##?? #????????????????? | | ##??????# ??????????# #????#????????????????? | | #?????? ?????????? #?????????????????????? | | " ##????# ??????????# ?????????????????????? | | " #????# ""??????????# #?????????????????????? | | " #????# ""??????????# #?????????????????????? | | ##### """??????? ?# #?????????????????????? | | ??????? ?# ??????????????????????? | | #??????? ?# ??????????????????????? | | ###### #???????? ?? ??????????????????????? | | #?????? ????????? ?? ??????????????????????? | | #??????? #???????? ?? ??????????????????????? | | ####??????? ###????# #????????????????????????? | | ##?????? ?????# #????????????????????????? | | #??????# ?????# #????????????????????????? | | ##?????# #?????# #????????????????????????? | | ####??# #?????# #????????????????????????? | | ##?# #?????# #????????????????????????? | | #?# #???### ######???????????????????? | | # ### #???# ##??????????????????? | | # !!##### ##?????????????????? | | # %%! #?????????????????? | +----------------------------------------------------+ Best States ------------- Heat Dissipation 35 Energy Generation 10 Energy Capacity 250 Matter Stores 300 Matter Capacity 300 Sight Range 16 Terrain Scan Density 10 Armor Coverage 150 Evasion (%) 40 Recoil Reduction 2 Item Schematics ----------------- None Robot Schematics ------------------ None Fabricated ------------ Nothing Repaired ---------- Assault Rifle | 18% | -10/Materials Alien Tech Used ----------------- None Achievements -------------- None Challenges ------------ None Game ------ Seed SegregatorBombBroadsword Manual? 0 Play Time 00:18:22 Cumulative 493.6 hours Start 2025.07.12 @ 01:54:24 End 2025.07.12 @ 02:12:23 Sessions 3 Manual Loads 0 Difficulty Rogue Special Mode None Game No. 399 Rogue 391 Adventurer 0 Explorer 8 Win Type - Total 8 Types 6/0/2/0/0/0/0/0/0/0 Lore% 84 Gallery% 77 Achievement% 71 Wizard Run 0 Options --------- Layout 0 ASCII 0 Keyboard 1 Movement Vi Keybinds 0 Fullscreen 1 Font 18/SmallcapsGlow Map View 76x50 Zoom Use 0% Tactical HUD 1 Map Filters NONE Filters NONE Steam 1 RUN: 65f643af-3dd8-4eeb-98fa-105794c8f1b7